[Event "Titled Tuesday Blitz March 07 Early 2023"]
[White "Madaminov, Mukhiddin"]
[Black "Keymer, Vincent"]
[WhiteFideId "14210703"]
[BlackFideId "12940690"]
[WhiteElo "2511"]
[BlackElo "2651"]
[Result "1-0"]
[Round "05"]
[TimeControl "180+2"]
[Date "2023.03.07"]
[WhiteClock "0:00:19"]
[BlackClock "0:00:01"]

1. d4 {[%clk 0:03:00]}  Nf6 {[%clk 0:03:00]} 2. Nc3 {[%clk 0:03:01]}  d5 {[%clk 0:02:59]} 3. Bf4 {[%clk 0:03:01]}  c5 {[%clk 0:03:00]} 4. e4 {[%clk 0:03:02]}  Nxe4 {[%clk 0:03:00]} 5. Nxe4 {[%clk 0:03:03]}  dxe4 {[%clk 0:03:01]} 6. dxc5 {[%clk 0:03:03]}  Qa5+ {[%clk 0:03:01]} 7. c3 {[%clk 0:03:04]}  Qxc5 {[%clk 0:03:01]} 8. Qa4+ {[%clk 0:03:04]}  Nc6 {[%clk 0:03:01]} 9. Qxe4 {[%clk 0:03:05]}  g6 {[%clk 0:03:02]} 10. Nf3 {[%clk 0:03:06]}  Bg7 {[%clk 0:02:59]} 11. Qe3 {[%clk 0:03:06]}  Qxe3+ {[%clk 0:02:50]} 12. Bxe3 {[%clk 0:03:07]}  O-O {[%clk 0:02:50]} 13. O-O-O {[%clk 0:03:06]}  Be6 {[%clk 0:02:46]} 14. Kb1 {[%clk 0:03:06]}  Rfd8 {[%clk 0:02:45]} 15. Be2 {[%clk 0:03:06]}  h6 {[%clk 0:02:32]} 16. h4 {[%clk 0:02:59]}  Bd5 {[%clk 0:02:29]} 17. Rhe1 {[%clk 0:02:39]}  Rd7 {[%clk 0:02:09]} 18. Bc4 {[%clk 0:02:24]}  Rad8 {[%clk 0:02:08]} 19. Rxd5 {[%clk 0:02:24]}  Rxd5 {[%clk 0:02:09]} 20. Bxd5 {[%clk 0:02:25]}  Rxd5 {[%clk 0:02:10]} 21. Kc2 {[%clk 0:02:24]}  f5 {[%clk 0:02:03]} 22. a4 {[%clk 0:02:03]}  Kf7 {[%clk 0:01:58]} 23. Nd2 {[%clk 0:02:01]}  e5 {[%clk 0:01:42]} 24. Nc4 {[%clk 0:01:59]}  Ke6 {[%clk 0:01:36]} 25. b4 {[%clk 0:01:58]}  a6 {[%clk 0:01:25]} 26. Nb6 {[%clk 0:01:56]}  Rd8 {[%clk 0:01:25]} 27. b5 {[%clk 0:01:57]}  axb5 {[%clk 0:01:20]} 28. axb5 {[%clk 0:01:58]}  Ne7 {[%clk 0:01:21]} 29. c4 {[%clk 0:01:54]}  e4 {[%clk 0:01:17]} 30. g3 {[%clk 0:01:53]}  Rd3 {[%clk 0:01:05]} 31. Na4 {[%clk 0:01:51]}  Kf7 {[%clk 0:00:57]} 32. Bc5 {[%clk 0:01:39]}  Nc8 {[%clk 0:00:35]} 33. Rd1 {[%clk 0:01:34]}  Rxd1 {[%clk 0:00:20]} 34. Kxd1 {[%clk 0:01:34]}  g5 {[%clk 0:00:21]} 35. hxg5 {[%clk 0:01:27]}  hxg5 {[%clk 0:00:22]} 36. Kc2 {[%clk 0:01:18]}  f4 {[%clk 0:00:22]} 37. gxf4 {[%clk 0:01:19]}  gxf4 {[%clk 0:00:23]} 38. Nc3 {[%clk 0:01:19]}  Bxc3 {[%clk 0:00:20]} 39. Kxc3 {[%clk 0:01:20]}  Ke6 {[%clk 0:00:21]} 40. Kd4 {[%clk 0:01:17]}  e3 {[%clk 0:00:20]} 41. fxe3 {[%clk 0:01:14]}  b6 {[%clk 0:00:10]} 42. exf4 {[%clk 0:00:58]}  bxc5+ {[%clk 0:00:07]} 43. Kxc5 {[%clk 0:00:58]}  Ne7 {[%clk 0:00:02]} 44. b6 {[%clk 0:00:58]}  Kd7 {[%clk 0:00:01]} 45. Kb5 {[%clk 0:00:54]}  Nc6 {[%clk 0:00:01]} 46. Kc5 {[%clk 0:00:51]}  Ne7 {[%clk 0:00:01]} 47. Kb5 {[%clk 0:00:42]}  Nc6 {[%clk 0:00:01]} 48. c5 {[%clk 0:00:43]}  Nd4+ {[%clk 0:00:01]} 49. Kc4 {[%clk 0:00:43]}  Nc6 {[%clk 0:00:01]} 50. Kd5 {[%clk 0:00:43]}  Ne7+ {[%clk 0:00:01]} 51. Ke5 {[%clk 0:00:41]}  Kc6 {[%clk 0:00:01]} 52. f5 {[%clk 0:00:22]}  Kxc5 {[%clk 0:00:01]} 53. b7 {[%clk 0:00:18]}  Nc6+ {[%clk 0:00:01]} 54. Ke4 {[%clk 0:00:18]}  Kb6 {[%clk 0:00:01]} 55. f6 {[%clk 0:00:18]}  Kxb7 {[%clk 0:00:01]} 56. f7 {[%clk 0:00:19]} 1-0


[Site "https://www.chess.com"]

[Event "Titled Tuesday Blitz March 07 Early 2023"]
[White "Andreikin, Dmitry"]
[Black "Volkov, Sergey"]
[WhiteFideId "4158814"]
[BlackFideId "4122763"]
[WhiteElo "2736"]
[BlackElo "2401"]
[Result "1-0"]
[Round "05"]
[TimeControl "180+2"]
[Date "2023.03.07"]
[WhiteClock "0:02:06"]
[BlackClock "0:00:02"]

1. Nf3 {[%clk 0:03:00]}  d5 {[%clk 0:02:59]} 2. d4 {[%clk 0:02:58]}  Nf6 {[%clk 0:02:58]} 3. c4 {[%clk 0:02:59]}  c6 {[%clk 0:02:58]} 4. Qc2 {[%clk 0:02:59]}  g6 {[%clk 0:02:57]} 5. cxd5 {[%clk 0:02:58]}  cxd5 {[%clk 0:02:55]} 6. Bf4 {[%clk 0:02:58]}  Nc6 {[%clk 0:02:54]} 7. Nc3 {[%clk 0:02:58]}  Bg7 {[%clk 0:02:52]} 8. e3 {[%clk 0:02:58]}  O-O {[%clk 0:02:52]} 9. h3 {[%clk 0:02:58]}  Bf5 {[%clk 0:02:51]} 10. Qb3 {[%clk 0:02:57]}  Na5 {[%clk 0:02:51]} 11. Qd1 {[%clk 0:02:58]}  Rc8 {[%clk 0:02:47]} 12. Be2 {[%clk 0:02:57]}  Ne4 {[%clk 0:02:41]} 13. Nxe4 {[%clk 0:02:55]}  Bxe4 {[%clk 0:02:40]} 14. O-O {[%clk 0:02:54]}  Bxf3 {[%clk 0:02:37]} 15. Bxf3 {[%clk 0:02:55]}  e6 {[%clk 0:02:36]} 16. Qa4 {[%clk 0:02:55]}  Qb6 {[%clk 0:02:31]} 17. Rac1 {[%clk 0:02:47]}  Nc4 {[%clk 0:02:30]} 18. Be2 {[%clk 0:02:30]}  Nxb2 {[%clk 0:02:04]} 19. Qd7 {[%clk 0:02:30]}  Nc4 {[%clk 0:01:58]} 20. Rb1 {[%clk 0:02:30]}  Qa6 {[%clk 0:01:43]} 21. Rxb7 {[%clk 0:02:27]}  Qxa2 {[%clk 0:01:42]} 22. Bxc4 {[%clk 0:02:26]}  dxc4 {[%clk 0:01:28]} 23. Rxa7 {[%clk 0:02:21]}  Qb2 {[%clk 0:01:01]} 24. Bd6 {[%clk 0:02:21]}  Rcd8 {[%clk 0:01:00]} 25. Qc7 {[%clk 0:02:22]}  Rc8 {[%clk 0:00:59]} 26. Qd7 {[%clk 0:02:22]}  Rcd8 {[%clk 0:00:59]} 27. Qc6 {[%clk 0:02:23]}  Rc8 {[%clk 0:00:59]} 28. Qf3 {[%clk 0:02:23]}  Qb6 {[%clk 0:00:52]} 29. Rd7 {[%clk 0:02:22]}  Qb5 {[%clk 0:00:38]} 30. Rb7 {[%clk 0:02:20]}  Qd5 {[%clk 0:00:20]} 31. Bxf8 {[%clk 0:02:14]}  Qxf3 {[%clk 0:00:20]} 32. gxf3 {[%clk 0:02:15]}  Bxf8 {[%clk 0:00:18]} 33. Rc1 {[%clk 0:02:14]}  c3 {[%clk 0:00:14]} 34. Rb3 {[%clk 0:02:12]}  c2 {[%clk 0:00:14]} 35. Rb2 {[%clk 0:02:12]}  Ba3 {[%clk 0:00:14]} 36. Rcxc2 {[%clk 0:02:12]}  Rf8 {[%clk 0:00:13]} 37. Rb7 {[%clk 0:02:11]}  Bd6 {[%clk 0:00:10]} 38. f4 {[%clk 0:02:11]}  h6 {[%clk 0:00:09]} 39. Kg2 {[%clk 0:02:11]}  g5 {[%clk 0:00:08]} 40. Rc6 {[%clk 0:02:11]}  Ba3 {[%clk 0:00:08]} 41. f5 {[%clk 0:02:08]}  exf5 {[%clk 0:00:07]} 42. Rxh6 {[%clk 0:02:09]}  Kg7 {[%clk 0:00:08]} 43. Ra6 {[%clk 0:02:09]}  Bc1 {[%clk 0:00:05]} 44. Ra2 {[%clk 0:02:09]}  f4 {[%clk 0:00:05]} 45. Rc7 {[%clk 0:02:08]}  fxe3 {[%clk 0:00:02]} 46. Rxc1 {[%clk 0:02:07]}  e2 {[%clk 0:00:02]} 47. Rxe2 {[%clk 0:02:06]} 1-0


[Site "https://www.chess.com"]

[Event "Titled Tuesday Blitz March 07 Early 2023"]
[White "Dubov, Daniil"]
[Black "Korchmar, Vasiliy"]
[WhiteFideId "24126055"]
[BlackFideId "24131750"]
[WhiteElo "2802"]
[BlackElo "2370"]
[Result "1-0"]
[Round "05"]
[TimeControl "180+2"]
[Date "2023.03.07"]
[WhiteClock "0:00:33"]
[BlackClock "0:00:03"]

1. Nf3 {[%clk 0:02:41]}  d5 {[%clk 0:02:59]} 2. g3 {[%clk 0:02:41]}  g6 {[%clk 0:03:00]} 3. Bg2 {[%clk 0:02:41]}  Bg7 {[%clk 0:03:00]} 4. O-O {[%clk 0:02:42]}  e5 {[%clk 0:03:00]} 5. d3 {[%clk 0:02:42]}  Ne7 {[%clk 0:03:00]} 6. Nc3 {[%clk 0:02:41]}  O-O {[%clk 0:02:59]} 7. e4 {[%clk 0:02:41]}  d4 {[%clk 0:02:58]} 8. Ne2 {[%clk 0:02:41]}  c5 {[%clk 0:02:58]} 9. Nd2 {[%clk 0:02:42]}  Nbc6 {[%clk 0:02:58]} 10. a4 {[%clk 0:02:40]}  Be6 {[%clk 0:02:57]} 11. f4 {[%clk 0:02:40]}  f6 {[%clk 0:02:57]} 12. b3 {[%clk 0:02:33]}  Kh8 {[%clk 0:02:54]} 13. Nc4 {[%clk 0:02:32]}  b6 {[%clk 0:02:47]} 14. f5 {[%clk 0:02:29]}  Bf7 {[%clk 0:02:26]} 15. g4 {[%clk 0:02:28]}  g5 {[%clk 0:02:08]} 16. h4 {[%clk 0:02:23]}  h6 {[%clk 0:01:59]} 17. Kf2 {[%clk 0:02:20]}  a6 {[%clk 0:01:51]} 18. Rh1 {[%clk 0:02:19]}  Kg8 {[%clk 0:01:50]} 19. Ng3 {[%clk 0:02:18]}  b5 {[%clk 0:01:48]} 20. axb5 {[%clk 0:02:17]}  axb5 {[%clk 0:01:49]} 21. Rxa8 {[%clk 0:02:17]}  Qxa8 {[%clk 0:01:50]} 22. Nd6 {[%clk 0:02:17]}  c4 {[%clk 0:01:38]} 23. bxc4 {[%clk 0:01:51]}  bxc4 {[%clk 0:01:37]} 24. hxg5 {[%clk 0:01:31]}  hxg5 {[%clk 0:01:35]} 25. Nh5 {[%clk 0:01:30]}  Qa2 {[%clk 0:01:07]} 26. Nxf7 {[%clk 0:01:17]}  Rxf7 {[%clk 0:01:08]} 27. Kg3 {[%clk 0:01:17]}  Nb4 {[%clk 0:01:02]} 28. dxc4 {[%clk 0:01:12]}  Qxc4 {[%clk 0:00:40]} 29. Bf1 {[%clk 0:01:10]}  Qc3+ {[%clk 0:00:40]} 30. Qf3 {[%clk 0:01:08]}  Qxc2 {[%clk 0:00:33]} 31. Ba3 {[%clk 0:01:08]}  Nec6 {[%clk 0:00:27]} 32. Bb5 {[%clk 0:01:07]}  Ra7 {[%clk 0:00:11]} 33. Rc1 {[%clk 0:00:53]}  Qd2 {[%clk 0:00:07]} 34. Qb3+ {[%clk 0:00:45]}  Kh7 {[%clk 0:00:04]} 35. Rh1 {[%clk 0:00:42]}  Bh6 {[%clk 0:00:02]} 36. Nxf6+ {[%clk 0:00:42]}  Kg7 {[%clk 0:00:02]} 37. Qg8+ {[%clk 0:00:40]}  Kxf6 {[%clk 0:00:02]} 38. Qe6+ {[%clk 0:00:35]}  Kg7 {[%clk 0:00:02]} 39. Qxh6+ {[%clk 0:00:36]}  Kf7 {[%clk 0:00:02]} 40. Qe6+ {[%clk 0:00:36]}  Kg7 {[%clk 0:00:01]} 41. f6+ {[%clk 0:00:34]}  Kg6 {[%clk 0:00:02]} 42. f7+ {[%clk 0:00:34]}  Kg7 {[%clk 0:00:02]} 43. f8=Q+ {[%clk 0:00:34]}  Kxf8 {[%clk 0:00:03]} 44. Rh8+ {[%clk 0:00:33]} 1-0


[Site "https://www.chess.com"]

[Event "Titled Tuesday Blitz March 07 Early 2023"]
[White "Aldokhin, Ivan"]
[Black "Pranav, V"]
[WhiteFideId "24115720"]
[BlackFideId "25060783"]
[WhiteElo "2322"]
[BlackElo "2500"]
[Result "0-1"]
[Round "05"]
[TimeControl "180+2"]
[Date "2023.03.07"]
[WhiteClock "0:00:02"]
[BlackClock "0:00:06"]

1. e4 {[%clk 0:02:59]}  e5 {[%clk 0:02:59]} 2. Nf3 {[%clk 0:02:59]}  Nc6 {[%clk 0:03:00]} 3. Bb5 {[%clk 0:02:58]}  a6 {[%clk 0:02:59]} 4. Ba4 {[%clk 0:02:59]}  Nf6 {[%clk 0:02:59]} 5. O-O {[%clk 0:02:59]}  Be7 {[%clk 0:02:58]} 6. Re1 {[%clk 0:02:58]}  b5 {[%clk 0:02:58]} 7. Bb3 {[%clk 0:02:58]}  O-O {[%clk 0:02:58]} 8. d4 {[%clk 0:02:57]}  d6 {[%clk 0:02:55]} 9. c3 {[%clk 0:02:57]}  h6 {[%clk 0:02:45]} 10. Be3 {[%clk 0:02:49]}  exd4 {[%clk 0:02:32]} 11. cxd4 {[%clk 0:02:48]}  Na5 {[%clk 0:02:32]} 12. Bc2 {[%clk 0:02:48]}  c5 {[%clk 0:02:31]} 13. e5 {[%clk 0:02:28]}  dxe5 {[%clk 0:02:30]} 14. dxe5 {[%clk 0:02:28]}  Ng4 {[%clk 0:01:29]} 15. Bf4 {[%clk 0:02:11]}  Qxd1 {[%clk 0:01:26]} 16. Rxd1 {[%clk 0:02:06]}  f6 {[%clk 0:01:23]} 17. Be4 {[%clk 0:01:25]}  Ra7 {[%clk 0:01:21]} 18. Bd5+ {[%clk 0:01:22]}  Kh8 {[%clk 0:01:17]} 19. e6 {[%clk 0:01:23]}  Rd8 {[%clk 0:01:14]} 20. Bb8 {[%clk 0:01:19]}  Rb7 {[%clk 0:01:04]} 21. Bg3 {[%clk 0:01:06]}  Bxe6 {[%clk 0:01:04]} 22. Nc3 {[%clk 0:01:07]}  Bxd5 {[%clk 0:01:04]} 23. Rxd5 {[%clk 0:01:03]}  Rxd5 {[%clk 0:00:39]} 24. Nxd5 {[%clk 0:01:04]}  Rd7 {[%clk 0:00:37]} 25. Nb6 {[%clk 0:00:47]}  Rd3 {[%clk 0:00:31]} 26. Re1 {[%clk 0:00:44]}  Bd8 {[%clk 0:00:29]} 27. Nc8 {[%clk 0:00:39]}  Nc4 {[%clk 0:00:27]} 28. b3 {[%clk 0:00:21]}  Nd2 {[%clk 0:00:27]} 29. h3 {[%clk 0:00:15]}  Nxf3+ {[%clk 0:00:21]} 30. gxf3 {[%clk 0:00:14]}  Ne5 {[%clk 0:00:22]} 31. Bxe5 {[%clk 0:00:12]}  fxe5 {[%clk 0:00:23]} 32. Rxe5 {[%clk 0:00:12]}  c4 {[%clk 0:00:22]} 33. bxc4 {[%clk 0:00:12]}  bxc4 {[%clk 0:00:23]} 34. Rc5 {[%clk 0:00:11]}  Rxf3 {[%clk 0:00:18]} 35. Rxc4 {[%clk 0:00:10]}  Rxh3 {[%clk 0:00:19]} 36. Nd6 {[%clk 0:00:09]}  Kh7 {[%clk 0:00:19]} 37. Ra4 {[%clk 0:00:07]}  a5 {[%clk 0:00:17]} 38. Nb7 {[%clk 0:00:07]}  Bb6 {[%clk 0:00:17]} 39. Nxa5 {[%clk 0:00:07]}  Rg3+ {[%clk 0:00:13]} 40. Kf1 {[%clk 0:00:04]}  Rf3 {[%clk 0:00:13]} 41. Nc4 {[%clk 0:00:05]}  Rxf2+ {[%clk 0:00:14]} 42. Ke1 {[%clk 0:00:06]}  Bc5 {[%clk 0:00:12]} 43. Ra5 {[%clk 0:00:04]}  Bd4 {[%clk 0:00:12]} 44. Rd5 {[%clk 0:00:03]}  Rf4 {[%clk 0:00:12]} 45. Ke2 {[%clk 0:00:02]}  Ba7 {[%clk 0:00:12]} 46. Kd3 {[%clk 0:00:03]}  Rf3+ {[%clk 0:00:11]} 47. Ke4 {[%clk 0:00:03]}  Rf2 {[%clk 0:00:11]} 48. a4 {[%clk 0:00:02]}  Ra2 {[%clk 0:00:11]} 49. a5 {[%clk 0:00:03]}  Bf2 {[%clk 0:00:11]} 50. Rd7 {[%clk 0:00:01]}  Be1 {[%clk 0:00:11]} 51. Rd5 {[%clk 0:00:01]}  Bb4 {[%clk 0:00:09]} 52. Rb5 {[%clk 0:00:01]}  Ra4 {[%clk 0:00:09]} 53. Kd5 {[%clk 0:00:02]}  h5 {[%clk 0:00:08]} 54. Kc6 {[%clk 0:00:02]}  Kh6 {[%clk 0:00:07]} 55. Kb6 {[%clk 0:00:02]}  Be1 {[%clk 0:00:06]} 56. a6 {[%clk 0:00:02]}  Rxc4 {[%clk 0:00:06]} 57. Kb7 {[%clk 0:00:01]}  Bf2 {[%clk 0:00:06]} 58. Rf5 {[%clk 0:00:01]}  Be3 {[%clk 0:00:06]} 59. Re5 {[%clk 0:00:01]}  Rb4+ {[%clk 0:00:06]} 60. Kc8 {[%clk 0:00:01]}  Bg1 {[%clk 0:00:05]} 61. Re1 {[%clk 0:00:01]}  Rc4+ {[%clk 0:00:05]} 62. Kb7 {[%clk 0:00:01]}  Bd4 {[%clk 0:00:05]} 63. Re4 {[%clk 0:00:01]}  Rb4+ {[%clk 0:00:06]} 64. Kc6 {[%clk 0:00:02]}  Ra4 {[%clk 0:00:06]} 65. Kb7 {[%clk 0:00:02]}  g5 {[%clk 0:00:06]} 0-1


[Site "https://www.chess.com"]

[Event "Titled Tuesday Blitz March 07 Early 2023"]
[White "Lazavik, Denis"]
[Black "De Silva, L M S T"]
[WhiteFideId "13515110"]
[BlackFideId "9953698"]
[WhiteElo "2560"]
[BlackElo "2403"]
[Result "1/2-1/2"]
[Round "05"]
[TimeControl "180+2"]
[Date "2023.03.07"]
[WhiteClock "0:00:04"]
[BlackClock "0:00:06"]

1. d4 {[%clk 0:03:00]}  Nf6 {[%clk 0:02:57]} 2. c4 {[%clk 0:03:01]}  e6 {[%clk 0:02:57]} 3. Nf3 {[%clk 0:03:02]}  d5 {[%clk 0:02:54]} 4. g3 {[%clk 0:03:02]}  Bb4+ {[%clk 0:02:54]} 5. Bd2 {[%clk 0:03:02]}  Be7 {[%clk 0:02:54]} 6. Bg2 {[%clk 0:03:03]}  O-O {[%clk 0:02:55]} 7. O-O {[%clk 0:03:03]}  c6 {[%clk 0:02:55]} 8. Bc3 {[%clk 0:03:03]}  Ne4 {[%clk 0:02:53]} 9. Nbd2 {[%clk 0:03:02]}  Nxc3 {[%clk 0:02:53]} 10. bxc3 {[%clk 0:03:03]}  Nd7 {[%clk 0:02:53]} 11. a4 {[%clk 0:02:59]}  b6 {[%clk 0:02:51]} 12. Qb3 {[%clk 0:02:55]}  Ba6 {[%clk 0:02:50]} 13. Rfc1 {[%clk 0:02:50]}  Rb8 {[%clk 0:02:45]} 14. e3 {[%clk 0:02:47]}  Qc7 {[%clk 0:02:24]} 15. cxd5 {[%clk 0:02:23]}  cxd5 {[%clk 0:02:23]} 16. c4 {[%clk 0:02:20]}  dxc4 {[%clk 0:02:20]} 17. Nxc4 {[%clk 0:02:19]}  Rfc8 {[%clk 0:02:17]} 18. Bf1 {[%clk 0:02:18]}  Qc6 {[%clk 0:02:07]} 19. Qd1 {[%clk 0:01:51]}  Qd5 {[%clk 0:01:58]} 20. Ncd2 {[%clk 0:01:43]}  Bxf1 {[%clk 0:01:53]} 21. Qxf1 {[%clk 0:01:42]}  e5 {[%clk 0:01:36]} 22. Qb5 {[%clk 0:01:32]}  Qe6 {[%clk 0:00:50]} 23. dxe5 {[%clk 0:01:12]}  Nc5 {[%clk 0:00:48]} 24. Nd4 {[%clk 0:01:09]}  Qxe5 {[%clk 0:00:29]} 25. Nc6 {[%clk 0:01:07]}  a6 {[%clk 0:00:27]} 26. Nxe5 {[%clk 0:00:49]}  axb5 {[%clk 0:00:27]} 27. axb5 {[%clk 0:00:50]}  Bf6 {[%clk 0:00:27]} 28. Ndf3 {[%clk 0:00:38]}  Re8 {[%clk 0:00:24]} 29. Nc6 {[%clk 0:00:36]}  Bxa1 {[%clk 0:00:23]} 30. Nxb8 {[%clk 0:00:35]}  Bb2 {[%clk 0:00:20]} 31. Rc2 {[%clk 0:00:35]}  Rxb8 {[%clk 0:00:19]} 32. Rxb2 {[%clk 0:00:35]}  Ra8 {[%clk 0:00:15]} 33. Rd2 {[%clk 0:00:35]}  Kf8 {[%clk 0:00:14]} 34. Rd6 {[%clk 0:00:26]}  Ne4 {[%clk 0:00:10]} 35. Rxb6 {[%clk 0:00:23]}  Ra1+ {[%clk 0:00:11]} 36. Kg2 {[%clk 0:00:24]}  Ra2 {[%clk 0:00:12]} 37. Nd4 {[%clk 0:00:22]}  Rxf2+ {[%clk 0:00:11]} 38. Kg1 {[%clk 0:00:21]}  Rb2 {[%clk 0:00:10]} 39. Nf5 {[%clk 0:00:20]}  Ke8 {[%clk 0:00:05]} 40. Nxg7+ {[%clk 0:00:20]}  Kd7 {[%clk 0:00:05]} 41. Nf5 {[%clk 0:00:21]}  Nd2 {[%clk 0:00:04]} 42. Nd4 {[%clk 0:00:21]}  Nc4 {[%clk 0:00:03]} 43. Rb7+ {[%clk 0:00:21]}  Kd6 {[%clk 0:00:03]} 44. Nf5+ {[%clk 0:00:07]}  Ke5 {[%clk 0:00:03]} 45. Rxf7 {[%clk 0:00:05]}  Nd2 {[%clk 0:00:02]} 46. Nd4 {[%clk 0:00:04]}  Ke4 {[%clk 0:00:03]} 47. Re7+ {[%clk 0:00:04]}  Kd3 {[%clk 0:00:03]} 48. Kg2 {[%clk 0:00:04]}  Nc4+ {[%clk 0:00:03]} 49. Kh3 {[%clk 0:00:04]}  Nxe3 {[%clk 0:00:03]} 50. Nf3 {[%clk 0:00:04]}  Nf1 {[%clk 0:00:04]} 51. Rd7+ {[%clk 0:00:04]}  Ke3 {[%clk 0:00:04]} 52. Rf7 {[%clk 0:00:04]}  Rxb5 {[%clk 0:00:04]} 53. Kg2 {[%clk 0:00:04]}  Rb1 {[%clk 0:00:02]} 54. Re7+ {[%clk 0:00:04]}  Kd3 {[%clk 0:00:03]} 55. Rd7+ {[%clk 0:00:04]}  Ke2 {[%clk 0:00:03]} 56. Nd4+ {[%clk 0:00:04]}  Ke1 {[%clk 0:00:03]} 57. Nf5 {[%clk 0:00:04]}  Rb2+ {[%clk 0:00:03]} 58. Kf3 {[%clk 0:00:02]}  Nxh2+ {[%clk 0:00:03]} 59. Kf4 {[%clk 0:00:03]}  Nf1 {[%clk 0:00:04]} 60. Re7+ {[%clk 0:00:02]}  Kf2 {[%clk 0:00:04]} 61. Nd6 {[%clk 0:00:02]}  Rb4+ {[%clk 0:00:04]} 62. Ne4+ {[%clk 0:00:03]}  Kg2 {[%clk 0:00:04]} 63. Kg5 {[%clk 0:00:02]}  Nxg3 {[%clk 0:00:04]} 64. Nxg3 {[%clk 0:00:03]}  Kxg3 {[%clk 0:00:05]} 65. Rxh7 {[%clk 0:00:03]}  Rg4+ {[%clk 0:00:05]} 66. Kf5 {[%clk 0:00:04]}  Rh4 {[%clk 0:00:05]} 67. Rxh4 {[%clk 0:00:04]}  Kxh4 {[%clk 0:00:06]} 1/2-1/2


[Site "https://www.chess.com"]

[Event "Titled Tuesday Blitz March 07 Early 2023"]
[White "Durarbayli, Vasif"]
[Black "Csonka, Balazs"]
[WhiteFideId "13402935"]
[BlackFideId "742910"]
[WhiteElo "2543"]
[BlackElo "2404"]
[Result "1-0"]
[Round "05"]
[TimeControl "180+2"]
[Date "2023.03.07"]
[WhiteClock "0:00:17"]
[BlackClock "0:00:02"]

1. e4 {[%clk 0:03:00]}  e5 {[%clk 0:02:58]} 2. Nf3 {[%clk 0:03:00]}  Nc6 {[%clk 0:02:58]} 3. Bb5 {[%clk 0:03:00]}  a6 {[%clk 0:02:58]} 4. Ba4 {[%clk 0:03:01]}  Nf6 {[%clk 0:02:57]} 5. d3 {[%clk 0:03:02]}  Bc5 {[%clk 0:02:54]} 6. c3 {[%clk 0:03:00]}  d6 {[%clk 0:02:50]} 7. Nbd2 {[%clk 0:02:59]}  O-O {[%clk 0:02:49]} 8. h3 {[%clk 0:02:59]}  Ne7 {[%clk 0:02:32]} 9. d4 {[%clk 0:02:46]}  exd4 {[%clk 0:02:33]} 10. cxd4 {[%clk 0:02:47]}  Ba7 {[%clk 0:02:33]} 11. Bc2 {[%clk 0:02:44]}  Ng6 {[%clk 0:02:21]} 12. O-O {[%clk 0:02:43]}  d5 {[%clk 0:02:09]} 13. e5 {[%clk 0:02:41]}  Nh5 {[%clk 0:02:09]} 14. Re1 {[%clk 0:02:30]}  f6 {[%clk 0:01:43]} 15. Nf1 {[%clk 0:02:23]}  fxe5 {[%clk 0:01:26]} 16. Bxg6 {[%clk 0:02:21]}  hxg6 {[%clk 0:01:23]} 17. Nxe5 {[%clk 0:02:12]}  Qf6 {[%clk 0:01:05]} 18. Be3 {[%clk 0:02:11]}  Nf4 {[%clk 0:00:52]} 19. Nh2 {[%clk 0:01:48]}  Bxh3 {[%clk 0:00:35]} 20. gxh3 {[%clk 0:01:30]}  Nxh3+ {[%clk 0:00:36]} 21. Kh1 {[%clk 0:01:18]}  Nxf2+ {[%clk 0:00:34]} 22. Bxf2 {[%clk 0:01:18]}  Qxf2 {[%clk 0:00:35]} 23. Nxg6 {[%clk 0:01:03]}  Rf6 {[%clk 0:00:17]} 24. Qh5 {[%clk 0:01:01]}  Bxd4 {[%clk 0:00:03]} 25. Qxd5+ {[%clk 0:00:22]}  Kh7 {[%clk 0:00:03]} 26. Qh5+ {[%clk 0:00:22]}  Kg8 {[%clk 0:00:03]} 27. Ne7+ {[%clk 0:00:19]}  Kf8 {[%clk 0:00:03]} 28. Qh8+ {[%clk 0:00:20]}  Kf7 {[%clk 0:00:04]} 29. Qxa8 {[%clk 0:00:21]}  Rh6 {[%clk 0:00:03]} 30. Qg8+ {[%clk 0:00:17]}  Kf6 {[%clk 0:00:02]} 31. Qf8+ {[%clk 0:00:17]} 1-0


[Site "https://www.chess.com"]

[Event "Titled Tuesday Blitz March 07 Early 2023"]
[White "Demchenko, Anton"]
[Black "Fiorito, Francisco"]
[WhiteFideId "4160258"]
[BlackFideId "180165"]
[WhiteElo "2545"]
[BlackElo "2341"]
[Result "1-0"]
[Round "05"]
[TimeControl "180+2"]
[Date "2023.03.07"]
[WhiteClock "0:00:10"]
[BlackClock "0:00:01"]

1. e4 {[%clk 0:02:43]}  c5 {[%clk 0:02:59]} 2. Nc3 {[%clk 0:02:42]}  Nc6 {[%clk 0:02:59]} 3. Bb5 {[%clk 0:02:41]}  Nd4 {[%clk 0:02:59]} 4. a4 {[%clk 0:02:41]}  g6 {[%clk 0:02:59]} 5. Nf3 {[%clk 0:02:38]}  Bg7 {[%clk 0:02:58]} 6. d3 {[%clk 0:02:34]}  a6 {[%clk 0:02:58]} 7. Bc4 {[%clk 0:02:33]}  d6 {[%clk 0:02:56]} 8. Nxd4 {[%clk 0:02:28]}  cxd4 {[%clk 0:02:56]} 9. Ne2 {[%clk 0:02:28]}  e6 {[%clk 0:02:53]} 10. O-O {[%clk 0:02:25]}  Ne7 {[%clk 0:02:53]} 11. Bb3 {[%clk 0:02:21]}  O-O {[%clk 0:02:53]} 12. Bd2 {[%clk 0:02:10]}  Bd7 {[%clk 0:02:45]} 13. Qc1 {[%clk 0:02:10]}  Re8 {[%clk 0:02:36]} 14. Bh6 {[%clk 0:02:04]}  Bh8 {[%clk 0:02:32]} 15. f4 {[%clk 0:01:56]}  Qa5 {[%clk 0:02:17]} 16. Ng3 {[%clk 0:01:43]}  Rac8 {[%clk 0:01:42]} 17. Qd1 {[%clk 0:01:23]}  Rc5 {[%clk 0:00:43]} 18. Qg4 {[%clk 0:01:16]}  f5 {[%clk 0:00:20]} 19. Qe2 {[%clk 0:01:06]}  Qc7 {[%clk 0:00:13]} 20. Rae1 {[%clk 0:00:57]}  d5 {[%clk 0:00:09]} 21. Bg5 {[%clk 0:00:51]}  fxe4 {[%clk 0:00:06]} 22. dxe4 {[%clk 0:00:51]}  Nc6 {[%clk 0:00:05]} 23. Qf3 {[%clk 0:00:42]}  dxe4 {[%clk 0:00:04]} 24. Nxe4 {[%clk 0:00:42]}  Rf5 {[%clk 0:00:05]} 25. g4 {[%clk 0:00:41]}  Rf7 {[%clk 0:00:05]} 26. Bh4 {[%clk 0:00:27]}  Ne5 {[%clk 0:00:05]} 27. Qg2 {[%clk 0:00:27]}  Nc4 {[%clk 0:00:06]} 28. Ng5 {[%clk 0:00:22]}  Rff8 {[%clk 0:00:06]} 29. Bg3 {[%clk 0:00:18]}  Ne3 {[%clk 0:00:05]} 30. Qh3 {[%clk 0:00:18]}  Bc8 {[%clk 0:00:04]} 31. Rf2 {[%clk 0:00:17]}  Bf6 {[%clk 0:00:03]} 32. Ne4 {[%clk 0:00:16]}  Bg7 {[%clk 0:00:02]} 33. f5 {[%clk 0:00:15]}  Qe7 {[%clk 0:00:03]} 34. Bh4 {[%clk 0:00:13]}  Qc7 {[%clk 0:00:03]} 35. f6 {[%clk 0:00:14]}  Bh8 {[%clk 0:00:03]} 36. Bg3 {[%clk 0:00:13]}  Qd7 {[%clk 0:00:02]} 37. Bf4 {[%clk 0:00:11]}  Rf7 {[%clk 0:00:01]} 38. Bxe3 {[%clk 0:00:10]}  dxe3 {[%clk 0:00:01]} 39. Rxe3 {[%clk 0:00:11]}  Qd4 {[%clk 0:00:01]} 40. c3 {[%clk 0:00:10]} 1-0


[Site "https://www.chess.com"]